bitfinex/quotes_ETHUSD_20240530
["timestamp","ask_amount","ask_price","bid_price","bid_amount"]
[1717031537124,0.03261042,3767.6,3767.1,1.83584044]
[1717031537461,2.65381,3768.2,3767.1,1.83584044]
[1717031537663,0.03265492,3768.1,3767.1,1.83584044]
[1717031538509,2.65396,3768.0,3767.1,1.83584044]
[1717031538710,2.65396,3768.0,3766.6,7.66336034]
[1717031539005,2.65418,3767.7,3766.7,1.29789222]
[1717031539681,0.03274393,3767.6,3766.7,1.29789222]
[1717031540183,2.65429,3767.5,3766.7,1.29789222]
[1717031540365,2.65429,3767.5,3766.8,0.75342526]
[1717031540565,2.65429,3767.5,3766.8,2.05131748]
[1717031540892,0.03274393,3767.4,3766.8,2.05131748]
[1717031541671,2.4352,3767.3,3766.3,0.43485114]
[1717031542279,0.03274393,3767.2,3766.3,0.43485114]
[1717031542484,0.03274393,3767.2,3766.4,1.29789222]
[1717031542485,2.65467,3767.0,3766.4,1.29789222]
[1717031543013,2.4352,3767.3,3766.4,1.29789222]
[1717031543232,0.03274393,3766.9,3766.5,0.17327434]
[1717031543435,0.03274393,3766.8,3766.5,1.47116656]
[1717031543733,2.65438,3767.4,3766.5,1.47116656]
[1717031544148,0.03274393,3767.3,3766.5,1.47116656]
[1717031546843,0.03274393,3767.3,3766.6,1.29789222]
[1717031547036,0.57449264,3767.7,3766.7,0.41261666]
[1717031547262,3.22859264,3767.8,3766.8,1.29789222]
[1717031547405,0.0326809,3767.6,3766.8,1.29789222]
[1717031547732,0.0326809,3767.5,3766.8,1.29789222]
[1717031548038,2.6541,3767.8,3766.9,0.31375089]
[1717031548241,0.0326809,3767.4,3766.9,0.31375089]
[1717031548440,3.2285266,3767.8,3766.9,0.31375089]
[1717031548657,0.0326809,3767.3,3766.9,0.31375089]
[1717031548942,0.0326809,3767.2,3767.0,1.29789222]
[1717031549239,2.65382,3768.2,3767.1,0.16116431]
[1717031549442,3.22824843,3768.2,3767.2,1.29789222]
[1717031551376,3.22824843,3768.2,3767.3,4.08136]
[1717031551671,2.4534,3768.7,3767.5,2.65425]
[1717031551672,5.1069,3768.7,3767.5,2.65425]
[1717031551879,0.57436795,3768.6,3767.6,1.83580644]
[1717031552167,0.57436795,3768.6,3767.7,2.65408]
[1717031552372,0.1241277,3768.9,3767.9,2.65398]
[1717031552667,0.1241277,3768.9,3768.0,1.83577944]
[1717031553636,2.7774777,3768.9,3768.0,0.53788722]
[1717031553938,2.7774777,3768.9,3767.6,3.53791422]
[1717031554139,2.65349,3768.7,3767.7,1.29789222]
[1717031554403,2.65349,3768.7,3767.7,4.29789222]
[1717031554534,2.65349,3768.7,3767.7,3.0]
[1717031554741,0.03239752,3768.6,3767.6,3.53791422]
[1717031554966,0.03239752,3768.6,3767.7,0.76191842]
[1717031555180,2.65363,3768.5,3767.7,0.76191842]
[1717031555382,2.3573,3768.4,3767.7,0.76191842]
[1717031555581,2.38969752,3768.4,3767.7,0.76191842]
[1717031555882,2.38969752,3768.4,3767.7,2.05981064]
[1717031556048,2.38969752,3768.4,3767.5,2.65427]
[1717031556049,0.03239752,3768.4,3767.8,1.76930028]
[1717031558176,0.03239752,3768.4,3767.9,1.427]
[1717031558350,0.1241277,3768.9,3768.0,1.29789222]
[1717031558536,0.1241277,3768.9,3768.0,4.29789222]
[1717031559988,0.1241277,3768.9,3768.2,2.65378]
[1717031560183,0.1241277,3768.9,3768.3,1.99305944]
[1717031560387,0.03114892,3768.8,3768.3,1.99305944]
[1717031561184,0.03114892,3768.8,3768.6,2.6535]
[1717031561340,0.1241277,3768.9,3768.7,1.29789222]
[1717031561545,0.1241277,3768.9,3768.8,2.65336]
[1717031561795,0.1241277,3768.9,3768.8,7.98277744]
[1717031566355,2.65232,3770.3,3769.2,2.65305]
[1717031566561,2.2627,3771.6,3769.8,4.58961]
[1717031566761,2.65168,3771.2,3769.9,4.88664244]
[1717031567018,2.65189,3770.9,3770.0,2.65246]
[1717031567172,2.65189,3770.9,3770.1,1.29789222]
[1717031568063,2.65189,3770.9,3769.9,0.58875022]
[1717031568317,2.2627,3771.1,3769.7,3.0]
[1717031568318,2.65217,3770.5,3769.7,3.0]
[1717031568475,2.65217,3770.5,3769.8,1.29789222]
[1717031569008,2.2627,3770.4,3769.6,2.65277]
[1717031569310,2.2627,3770.4,3769.6,3.95066222]
[1717031570300,2.2627,3770.4,3769.6,1.29789222]
[1717031570471,2.2627,3770.4,3769.6,1.72768144]
[1717031570674,2.2627,3770.4,3769.6,1.29789222]
[1717031571468,2.65217,3770.5,3769.7,1.29789222]
[1717031572992,2.4327,3770.7,3769.7,1.29789222]
[1717031573343,2.4327,3770.7,3769.7,4.29789222]
[1717031574608,2.4327,3770.7,3769.7,1.29789222]
[1717031574798,2.4327,3770.7,3769.8,0.39506222]
[1717031574999,2.4327,3770.7,3769.9,1.29789222]
[1717031577604,2.65211,3770.6,3769.8,0.39506222]
[1717031577921,2.65211,3770.6,3769.2,10.14456594]
[1717031578105,2.65211,3770.6,3769.3,1.29789222]
[1717031578629,2.65239,3770.2,3769.3,1.29789222]
[1717031578920,2.2812,3770.1,3769.3,1.29789222]
[1717031579085,2.65253,3770.0,3769.4,1.10955682]
[1717031579682,0.03216588,3769.9,3769.4,1.10955682]
[1717031579902,2.65266,3769.8,3769.4,1.10955682]
[1717031580113,2.65266,3769.8,3769.2,7.14456594]
[1717031580323,0.03216588,3769.7,3769.2,7.14456594]
[1717031580494,0.03216588,3769.7,3768.7,2.6534]
[1717031580690,0.03216588,3769.7,3768.9,1.29789222]
[1717031582127,2.65283,3769.6,3768.5,7.14456594]
[1717031582288,5.15263,3769.6,3768.8,2.32941744]
[1717031582490,5.15235,3770.0,3768.9,1.53083396]
[1717031583101,0.03186164,3769.9,3768.9,1.53083396]
[1717031584127,0.03186164,3769.9,3769.0,2.65319]
[1717031584286,0.03186164,3769.9,3769.1,1.29789222]
[1717031584485,2.65226,3770.4,3769.2,0.3467834]
[1717031584693,2.65226,3770.4,3769.3,1.29789222]
[1717031584888,0.03189504,3770.3,3769.4,1.3029]
[1717031585140,0.03189504,3770.3,3769.5,1.29789222]
[1717031585443,0.03189504,3770.3,3769.6,0.26007922]
[1717031585729,0.03189504,3770.3,3769.7,1.29789222]
[1717031586029,2.65226,3770.4,3769.7,1.29789222]
[1717031586197,5.05355,3770.9,3769.7,1.29789222]
[1717031586393,0.03199521,3770.3,3769.8,0.42107414]
[1717031586618,5.05355,3770.9,3769.9,1.29789222]
[1717031586932,0.03199521,3770.2,3769.9,1.29789222]
[1717031587126,5.05355,3770.9,3769.9,1.29789222]
[1717031587307,0.03199521,3770.1,3770.0,0.17189664]
[1717031587502,0.03199521,3770.1,3770.0,1.46978886]
[1717031587707,5.05355,3770.9,3770.0,1.46978886]
[1717031588031,0.03199521,3770.8,3770.1,1.29789222]
[1717031588390,0.60599544,3770.8,3770.1,1.29789222]
[1717031588545,0.60599544,3770.8,3770.2,0.14697889]
[1717031588851,0.60599544,3770.8,3770.2,1.44487111]
[1717031589636,0.03199521,3770.8,3770.2,1.44487111]
[1717031590151,0.03199521,3770.8,3770.3,1.29789222]
[1717031590715,0.57393682,3771.2,3770.3,1.29789222]
[1717031590931,0.03199521,3770.7,3770.4,0.54001011]
[1717031591142,2.65163,3771.3,3770.5,1.29789222]
[1717031591914,0.03199521,3771.2,3770.6,0.05303241]
[1717031592113,0.03199521,3771.2,3770.8,2.65194]
[1717031592339,0.57393682,3771.6,3770.9,1.29789222]
[1717031592529,0.03199521,3771.1,3771.0,0.39498322]
[1717031592738,2.65135,3771.7,3771.0,1.69287544]
[1717031593044,2.65135,3771.7,3771.1,1.29789222]
[1717031593853,0.03199521,3771.6,3771.1,1.29789222]
[1717031594550,0.03199521,3771.6,3771.0,0.39498322]
[1717031594709,0.03199521,3771.6,3771.0,1.69287544]
[1717031594912,0.03199521,3771.6,3771.1,0.43448154]
[1717031595741,0.03199521,3771.6,3771.2,1.29789222]
[1717031596048,2.3813,3771.9,3771.2,1.29789222]
[1717031596049,2.65106,3772.1,3771.2,1.29789222]
[1717031596450,0.03199521,3772.0,3771.2,1.29789222]
[1717031596747,0.03199521,3772.0,3771.3,0.17323738]
[1717031596959,0.03199521,3772.0,3771.4,1.29789222]
[1717031602044,2.65106,3772.1,3771.4,1.29789222]
[1717031602516,0.03369743,3772.0,3771.4,1.29789222]
[1717031604466,2.4022,3771.9,3771.3,0.17323738]
[1717031604614,2.65127,3771.8,3770.7,2.65199]
[1717031604822,2.68502302,3771.8,3770.8,1.29789222]
[1717031605120,2.65127,3771.8,3770.8,1.29789222]
[1717031605623,2.6515,3771.5,3770.8,1.29789222]
[1717031605825,2.6515,3771.5,3770.5,8.44746594]
[1717031605826,2.65167,3771.3,3770.5,7.14456594]
[1717031606160,2.65185,3771.0,3769.9,2.65255]
[1717031606309,2.65185,3771.0,3770.0,1.29789222]
[1717031609065,2.65185,3771.0,3770.1,2.65243]
[1717031609359,2.65185,3771.0,3770.2,1.29789222]
[1717031609360,0.03313024,3770.9,3770.2,1.29789222]
[1717031611071,0.03313024,3770.9,3770.3,3.95518]
[1717031611276,0.03313024,3770.9,3770.4,1.82319944]
[1717031611582,2.4022,3771.4,3770.4,1.82319944]
[1717031611745,0.03323408,3770.8,3770.4,1.82319944]
[1717031611947,2.4022,3771.4,3770.4,1.82319944]
[1717031612152,0.03323408,3770.7,3770.4,1.82319944]
[1717031612352,2.4022,3771.4,3770.5,0.57783794]
[1717031612546,2.4022,3771.4,3770.6,1.29789222]
[1717031613423,2.65151,3771.5,3770.6,3.94994222]
[1717031619706,2.3409,3771.7,3770.6,3.94994222]
[1717031623751,0.0334009,3771.6,3770.6,3.94994222]
[1717031623961,0.0334009,3771.6,3770.7,0.45277802]
[1717031624130,0.0334009,3771.6,3770.8,1.29789222]
[1717031624531,0.0334009,3771.6,3771.0,1.3029]
[1717031624748,0.57379917,3771.8,3771.1,3.94959222]
[1717031624916,2.65094,3772.3,3771.1,3.94959222]
[1717031624917,0.03233534,3771.7,3771.1,3.94959222]
[1717031625111,0.57377899,3772.2,3771.2,0.52524922]
[1717031625357,0.03233534,3772.1,3771.3,1.29789222]
[1717031626698,2.65114,3772.0,3771.3,1.29789222]
[1717031626999,2.31089469,3771.9,3771.3,1.29789222]
[1717031627311,2.884683,3771.9,3771.3,1.74537636]
[1717031627677,2.65153,3771.4,3770.7,0.45277802]
[1717031627877,2.65153,3771.4,3770.3,2.65228]
[1717031628091,2.65153,3771.4,3770.4,1.29789222]
[1717031628293,2.65176,3771.1,3770.4,1.29789222]
[1717031628696,0.03241324,3771.0,3770.4,1.29789222]
[1717031629781,0.03241324,3771.0,3770.8,3.23489222]
[1717031629989,2.651,3772.2,3770.9,1.75167144]
[1717031630184,3.22481613,3772.2,3770.9,1.75167144]
[1717031630883,3.22481613,3772.2,3771.2,2.65163]
[1717031631082,3.22481613,3772.2,3771.3,1.29789222]
[1717031637776,2.65122,3771.9,3771.3,1.29789222]
[1717031638114,2.4425,3771.8,3771.3,1.29789222]
[1717031638411,3.04882209,3771.8,3771.3,1.29789222]
[1717031639270,0.60632209,3771.8,3771.3,1.29789222]
[1717031639705,0.60632209,3771.8,3771.3,2.60079222]
[1717031639891,0.03250596,3771.8,3771.4,0.26007922]
[1717031640092,0.03250596,3771.8,3771.5,1.29789222]
[1717031640985,0.1241277,3772.7,3771.5,1.29789222]
[1717031641186,0.03238727,3771.7,3771.5,1.29789222]
[1717031641391,2.7747777,3772.7,3771.8,2.65121]
[1717031641584,0.57371975,3772.6,3772.0,1.3029]
[1717031641791,0.57371975,3772.6,3772.1,1.29789222]
[1717031643317,0.57371975,3772.6,3772.2,2.65093]
[1717031643479,0.1241277,3772.7,3772.3,1.29789222]
[1717031648484,0.1241277,3772.7,3772.5,1.29789222]
[1717031648725,0.1241277,3772.7,3772.6,2.60079222]
[1717031649424,0.1241277,3772.7,3772.6,5.25148222]
[1717031651102,0.1241277,3772.7,3772.6,1.29789222]
[1717031652733,0.1241277,3772.7,3772.6,1.69275144]
[1717031653486,0.1241277,3772.7,3772.6,2.99565144]
[1717031654730,0.1241277,3772.7,3772.6,5.99565144]
[1717031656439,0.1241277,3772.7,3772.6,7.93265144]
[1717031658720,0.1241277,3772.7,3772.6,8.48265144]
[1717031659332,2.64971,3774.0,3773.0,2.65039]
[1717031659636,0.03149487,3773.9,3773.1,1.56293122]
[1717031659796,2.64971,3774.0,3773.2,2.65024]
[1717031659997,2.64971,3774.0,3773.3,1.29789222]
[1717031660497,2.2607,3774.3,3773.3,1.29789222]
[1717031660926,0.03150599,3774.2,3773.3,1.29789222]
[1717031661239,0.03150599,3774.2,3773.4,0.42131712]
[1717031661434,0.03150599,3774.2,3773.5,1.29789222]
[1717031662740,2.64964,3774.1,3773.5,1.29789222]
[1717031663343,0.03150599,3774.0,3773.5,1.29789222]
[1717031666853,2.64981,3773.9,3773.5,1.29789222]
[1717031667005,2.68153113,3773.9,3773.5,1.29789222]
[1717031670509,2.2997,3773.8,3773.1,0.265039]
[1717031670849,2.65022,3773.3,3773.0,7.14456594]
[1717031671256,2.65034,3773.1,3773.0,7.14456594]
[1717031671422,2.65061,3772.8,3771.8,7.14456594]
[1717031671746,2.65061,3772.8,3771.9,2.01234881]
[1717031671943,0.0316766,3772.7,3771.9,1.29789222]
[1717031672130,0.0316766,3772.7,3772.0,2.65111]
[1717031672337,2.65045,3773.0,3772.1,1.29789222]
[1717031672535,0.03160984,3772.6,3772.1,1.29789222]
[1717031672752,2.65045,3773.0,3772.1,1.29789222]
[1717031673367,2.65061,3772.8,3772.1,1.29789222]
[1717031673513,3.22422807,3772.8,3772.1,1.29789222]
[1717031673845,0.03160984,3772.7,3772.1,1.29789222]
[1717031674377,2.65074,3772.6,3772.1,1.29789222]
[1717031674707,0.03132051,3772.5,3772.1,1.29789222]
[1717031676871,2.65084,3772.4,3771.5,1.3029]
[1717031677084,2.65084,3772.4,3771.6,2.14263881]
[1717031677227,0.03132051,3772.3,3771.6,2.14263881]
[1717031677782,2.651,3772.2,3771.6,2.14263881]
[1717031678071,0.03127971,3772.1,3771.6,2.14263881]
[1717031678443,2.65113,3772.0,3771.6,2.14263881]
[1717031678640,2.68217228,3772.0,3771.6,2.14263881]
[1717031679036,2.68217228,3772.0,3770.9,7.14456594]
[1717031679239,2.68217228,3772.0,3771.0,1.29789222]
[1717031679447,2.65131,3771.8,3771.0,1.29789222]
[1717031679839,0.03077878,3771.7,3771.0,1.29789222]
[1717031680239,2.65131,3771.8,3771.0,1.29789222]
[1717031680469,2.65131,3771.8,3771.1,0.84424582]
[1717031680670,0.03077878,3771.7,3771.2,1.29789222]
[1717031682970,2.65139,3771.6,3771.1,0.84424582]
[1717031683171,2.65139,3771.6,3770.9,7.14456594]
[1717031683372,2.65139,3771.6,3770.9,8.44245816]
[1717031683671,0.03068229,3771.5,3770.9,8.44245816]
[1717031683838,0.03068229,3771.5,3770.9,9.28670398]
[1717031684040,0.03068229,3771.5,3771.0,1.29789222]
[1717031686884,0.03068229,3771.5,3771.0,3.94967222]
[1717031687174,2.6511,3772.1,3771.0,3.94967222]
[1717031687479,0.03066002,3771.4,3771.0,3.94967222]
[1717031687775,2.6511,3772.1,3771.2,2.65167]
[1717031687958,2.6511,3772.1,3771.3,1.29789222]
[1717031688166,0.03066002,3772.0,3771.3,1.29789222]
[1717031688337,0.03066002,3772.0,3771.4,3.95443]
[1717031688657,2.65078,3772.5,3771.5,1.29789222]
[1717031688835,0.0307194,3771.9,3771.6,0.26007922]
[1717031689032,2.65078,3772.5,3771.7,1.29789222]
[1717031689236,0.03079364,3771.8,3771.7,1.29789222]
[1717031689436,2.65078,3772.5,3771.7,1.29789222]
[1717031689645,0.03079364,3771.8,3771.7,1.29789222]
[1717031689850,2.65078,3772.5,3771.7,1.58397936]
[1717031690069,0.03079364,3771.8,3771.7,1.58397936]
[1717031690382,2.65078,3772.5,3771.7,1.58397936]
[1717031690583,0.0308493,3771.8,3771.7,1.58397936]
[1717031690781,2.65078,3772.5,3771.7,1.58397936]
[1717031690941,0.0308493,3771.8,3771.7,1.58397936]
[1717031691140,2.65078,3772.5,3771.7,1.58397936]
[1717031691340,0.0308493,3771.8,3771.7,1.58397936]
[1717031691539,2.65078,3772.5,3771.7,1.58397936]
[1717031691779,0.0308493,3771.8,3771.7,1.58397936]
[1717031692256,2.65078,3772.5,3771.7,1.58397936]
[1717031692450,2.65078,3772.5,3771.8,0.42353394]
[1717031692654,2.65078,3772.5,3771.9,1.29789222]
[1717031693052,2.65096,3772.3,3771.7,0.28608714]
[1717031693267,2.65096,3772.3,3771.7,1.29789222]
[1717031696882,2.65065,3772.7,3771.8,1.29789222]
[1717031698704,0.03100146,3772.6,3771.8,1.29789222]
[1717031700111,0.03100146,3772.6,3771.8,3.94910222]
[1717031700270,2.2576,3772.9,3772.0,2.6511]
[1717031700476,0.03106454,3772.5,3772.1,1.29789222]
[1717031700677,2.2576,3772.9,3772.1,1.29789222]
[1717031700902,0.03106454,3772.4,3772.1,1.29789222]
[1717031701220,2.2576,3772.9,3772.1,1.29789222]
[1717031701422,0.03106454,3772.3,3772.2,0.56468024]
[1717031701567,0.03106454,3772.3,3772.2,1.86257246]
[1717031701768,2.65038,3773.1,3772.2,1.86257246]
[1717031702113,0.03134278,3773.0,3772.3,3.94876222]
[1717031702307,2.3258,3773.3,3772.4,0.45134425]
[1717031702615,2.3258,3773.3,3772.5,1.29789222]
[1717031702616,0.03134278,3772.9,3772.5,1.29789222]
[1717031702910,0.03134278,3772.8,3772.5,1.29789222]
[1717031703399,2.3258,3773.3,3772.5,1.29789222]
[1717031703571,0.03134278,3772.7,3772.2,0.56468024]
[1717031703769,2.65028,3773.2,3772.3,1.29789222]
[1717031704084,0.03134278,3773.1,3772.4,3.95371]
[1717031704284,0.03134278,3773.1,3772.5,1.29789222]
[1717031704794,0.03134278,3773.1,3772.9,1.29789222]
[1717031704997,0.03134278,3773.1,3772.8,1.937]
[1717031705198,0.57352858,3774.3,3773.1,1.3029]
[1717031705375,0.57352858,3774.9,3773.6,1.29789222]
[1717031705574,0.02825215,3774.2,3773.6,1.29789222]
[1717031705791,0.57352858,3774.9,3773.6,1.29789222]
[1717031705993,0.57352858,3774.9,3773.7,2.64991]
[1717031706192,0.02825215,3774.5,3773.8,1.69267244]
[1717031706618,0.02825215,3774.5,3774.2,1.29789222]
[1717031706775,2.64898,3775.1,3774.2,1.29789222]
[1717031706975,0.02825215,3774.4,3774.2,1.29789222]
[1717031707176,2.64898,3775.1,3774.2,1.29789222]
[1717031707399,0.02825215,3774.3,3774.2,1.29789222]
[1717031707578,2.64898,3775.1,3774.2,1.69265844]
[1717031708094,0.02825215,3774.5,3774.2,1.69265844]
[1717031708684,0.02825215,3774.5,3773.4,4.58707]
[1717031708886,0.02825215,3774.5,3773.5,1.29789222]
[1717031710642,2.67765215,3774.5,3773.6,1.29789222]
[1717031711774,0.02825215,3774.5,3773.8,1.29789222]
[1717031715385,5.12943,3774.4,3773.8,1.69268544]
[1717031715586,5.12943,3774.4,3773.8,1.29789222]
[1717031715818,0.02928675,3774.3,3773.8,1.29789222]
[1717031717081,2.64959,3774.2,3773.8,1.29789222]
[1717031717282,2.67881374,3774.2,3773.8,1.29789222]
[1717031718083,2.67881374,3774.2,3772.9,2.1857]
[1717031718084,2.64985,3773.8,3772.9,0.2487]
[1717031718397,2.64985,3773.8,3772.2,2.364037]
[1717031718398,2.64985,3773.8,3773.0,1.29789222]
[1717031718605,2.65001,3773.6,3773.0,1.29789222]
[1717031719197,2.65001,3773.6,3772.3,9.79539594]
[1717031719198,2.65013,3773.4,3772.3,9.79539594]
[1717031719393,2.65013,3773.4,3772.4,1.29789222]
[1717031719593,0.02903836,3773.3,3772.4,1.29789222]
[1717031719794,2.65013,3773.4,3772.5,1.23961882]
[1717031720001,2.65013,3773.4,3772.6,1.29789222]
[1717031720413,0.02903836,3773.3,3772.6,1.29789222]
[1717031720613,0.02903836,3773.3,3772.5,1.23961882]
[1717031720923,2.2744,3774.4,3773.2,1.29789222]
[1717031721122,2.2744,3774.4,3773.1,3.2399]
[1717031721123,2.2744,3774.4,3773.5,2.65005]
[1717031721421,2.2744,3774.4,3773.6,1.29789222]
[1717031723027,4.92388,3774.4,3773.6,1.29789222]
[1717031723538,1.937,3774.2,3772.0,1.3029]
[1717031723737,1.937,3774.2,3772.4,1.29789222]
[1717031723738,5.00518,3773.1,3772.4,1.29789222]
[1717031723923,5.00518,3773.1,3771.7,9.79581594]
[1717031724123,5.00518,3773.1,3771.8,1.29789222]
[1717031724344,2.65063,3772.7,3771.8,1.29789222]
[1717031724908,2.3548,3773.1,3771.8,1.29789222]
[1717031724909,2.65086,3772.4,3771.8,1.29789222]
[1717031725108,2.65086,3772.4,3771.8,2.14213804]
[1717031727245,2.65086,3772.4,3771.2,7.14456594]
[1717031727397,2.65086,3772.4,3771.3,1.29789222]
[1717031727597,2.6511,3772.1,3771.3,1.29789222]
[1717031728040,0.02646598,3772.0,3771.3,1.29789222]
[1717031728346,0.02646598,3772.0,3771.9,3.94907222]
[1717031728684,2.6502,3773.3,3772.2,2.6509]
[1717031728863,2.6502,3773.3,3772.3,1.29789222]
[1717031729043,2.6502,3773.3,3772.4,2.65078]
[1717031729201,2.6502,3773.3,3772.5,1.29789222]
[1717031729404,2.6502,3773.3,3772.6,0.39486722]
[1717031729767,2.6502,3773.3,3772.7,1.29789222]
[1717031730846,2.6502,3773.3,3772.6,0.39486722]
[1717031731141,2.6502,3773.3,3772.7,1.29789222]
[1717031731553,2.3801,3774.5,3772.7,3.94844222]
[1717031731863,2.3801,3774.5,3773.1,3.94822222]
[1717031732016,2.3801,3774.5,3773.5,2.65001]
[1717031732217,2.3801,3774.5,3773.6,1.29789222]
[1717031733528,0.0843,3774.6,3773.6,1.29789222]
[1717031733727,0.0843,3774.6,3773.7,0.39479022]
[1717031733931,0.0843,3774.6,3773.8,1.29789222]
[1717031738055,2.64936,3774.5,3773.8,1.29789222]
[1717031738846,2.64936,3774.5,3773.6,3.0]
[1717031739028,2.64936,3774.5,3773.7,1.29789222]
[1717031740028,2.64936,3774.5,3773.7,1.99268244]
[1717031740773,0.0843,3774.6,3773.8,2.64981]
[1717031740931,0.0843,3774.6,3774.0,2.64969]
[1717031741238,0.0843,3774.6,3774.1,4.29789222]
[1717031741861,0.02608855,3774.5,3774.1,4.29789222]
[1717031742030,0.02608855,3774.5,3774.2,0.69475822]
[1717031742236,0.02608855,3774.5,3774.3,1.29789222]
[1717031742875,0.0843,3774.6,3774.3,1.29789222]
[1717031744193,0.02608855,3774.5,3774.3,1.29789222]
[1717031745940,0.02608855,3774.5,3774.2,0.69475822]
[1717031746296,0.02608855,3774.5,3774.2,1.99265044]
[1717031746589,0.02608855,3774.5,3774.3,0.76423404]
[1717031747447,0.02608855,3774.5,3774.2,1.29789222]
[1717031749456,2.3566,3774.4,3773.2,9.79481594]
[1717031749782,2.3566,3774.4,3773.3,4.29789222]
[1717031750095,0.02629628,3774.3,3773.3,1.29789222]
[1717031750254,0.02629628,3774.3,3773.4,0.39481422]
[1717031750455,0.02629628,3774.3,3773.5,1.29789222]
[1717031750654,2.64961,3774.2,3773.5,1.29789222]
[1717031751176,0.02629628,3774.1,3773.5,1.29789222]
[1717031752066,2.64972,3774.0,3772.8,3.04535422]
[1717031752251,2.64972,3774.0,3772.9,1.29789222]
[1717031752452,2.64991,3773.8,3772.9,1.29789222]
[1717031753195,0.02640389,3773.7,3772.9,1.29789222]
[1717031753501,2.65,3773.6,3772.9,1.29789222]
[1717031753671,2.65,3773.6,3772.9,2.18162246]
[1717031754360,2.65013,3773.4,3772.9,2.18162246]
[1717031754993,0.02640389,3773.3,3772.9,2.18162246]
[1717031756168,0.02640389,3773.3,3772.9,1.29789222]
[1717031756886,2.65028,3773.2,3772.1,14.284]
[1717031757216,2.65028,3773.2,3772.7,1.29789222]
[1717031757543,0.02590299,3773.1,3772.7,1.29789222]
[1717031760290,0.02590299,3773.1,3772.7,2.14213804]
[1717031762203,0.02590299,3773.1,3772.7,1.29789222]
[1717031762785,2.65028,3773.2,3772.7,1.29789222]
[1717031764510,2.65052,3772.9,3772.2,3.0]
[1717031764703,2.65052,3772.9,3772.3,1.29789222]
[1717031765006,0.02569147,3772.8,3772.3,1.29789222]
[1717031765783,5.00855,3772.7,3771.8,10.14456594]
[1717031766008,0.02562467,3772.6,3771.9,1.29789222]
[1717031766177,5.00855,3772.7,3771.9,1.29789222]
[1717031767491,2.65065,3772.7,3771.9,1.29789222]
[1717031767822,0.02547247,3772.6,3771.9,1.29789222]
[1717031768432,2.65065,3772.7,3771.9,1.29789222]
[1717031768713,2.65065,3772.7,3772.0,1.48651527]
[1717031768919,0.02547247,3772.6,3772.1,1.29789222]
[1717031769226,2.65065,3772.7,3772.1,1.29789222]
[1717031769521,2.2541,3772.6,3772.1,1.29789222]
[1717031769749,0.02547247,3772.6,3772.1,1.29789222]
[1717031770028,2.65065,3772.7,3772.1,1.29789222]
[1717031770199,2.65065,3772.7,3772.1,2.44213804]
[1717031772988,2.2541,3773.0,3772.1,2.44213804]
[1717031773205,0.02547247,3772.9,3772.1,2.44213804]
[1717031773500,2.2649,3774.0,3772.1,5.44213804]
[1717031773893,2.3368,3773.4,3772.3,2.65088]
[1717031774231,2.3368,3773.4,3772.4,1.29789222]
[1717031774403,0.02541308,3773.3,3772.4,1.29789222]
[1717031774593,2.3368,3773.4,3772.4,1.29789222]
[1717031774788,0.02553927,3773.3,3772.4,1.29789222]
[1717031775009,2.65026,3773.3,3772.4,1.29789222]
[1717031775194,0.02553927,3773.2,3772.5,0.32319556]
[1717031775506,0.02553927,3773.2,3772.6,1.29789222]
[1717031777734,2.65039,3773.1,3772.3,0.8093018]
[1717031777894,2.65039,3773.1,3772.4,1.29789222]
[1717031778529,2.65061,3772.8,3771.9,2.65115]
[1717031778841,2.65092,3772.3,3771.9,1.29789222]
[1717031779191,0.02565064,3772.2,3771.9,1.29789222]
[1717031781644,0.02565064,3772.2,3771.4,7.14456594]
[1717031781948,0.02565064,3772.2,3771.2,3.0]
[1717031781949,2.4191,3771.9,3771.2,3.0]
[1717031782239,2.4191,3771.9,3771.2,1.29789222]
[1717031782844,2.67654084,3771.8,3771.2,1.29789222]
[1717031783199,2.65151,3771.5,3770.8,7.14456594]
[1717031783403,2.65151,3771.5,3770.3,3.95518]
[1717031783404,2.65151,3771.5,3770.3,9.79684594]
[1717031783755,2.65151,3771.5,3770.4,1.29789222]
[1717031783917,2.65169,3771.2,3770.4,1.29789222]
[1717031784411,0.02477814,3771.1,3770.4,1.29789222]
[1717031784755,0.02477814,3771.1,3770.4,2.14213804]
[1717031785106,2.65169,3771.2,3770.4,2.14213804]
[1717031786235,2.65169,3771.2,3770.0,3.0]
[1717031786435,2.65195,3770.8,3770.1,1.29789222]
[1717031786831,0.02436584,3770.7,3770.1,1.29789222]
[1717031787206,2.6522,3770.5,3769.4,2.65287]
[1717031787541,2.6522,3770.5,3769.5,1.56317922]
[1717031787708,0.02436584,3770.4,3769.5,1.56317922]
[1717031788047,2.6522,3770.5,3769.5,1.56317922]
[1717031788453,2.6522,3770.5,3769.5,4.56317922]
[1717031788613,2.6522,3770.5,3769.6,0.72160492]
[1717031788812,2.6522,3770.5,3769.7,1.29789222]
[1717031789447,2.4105,3769.7,3768.4,2.65359]
[1717031789655,2.4105,3769.7,3768.5,1.29789222]
[1717031789949,0.02417632,3769.6,3768.6,0.39514822]
[1717031790150,2.4105,3769.7,3768.6,1.69304044]
[1717031790351,2.65296,3769.4,3768.6,1.69304044]
[1717031790557,2.65296,3769.4,3768.6,1.29789222]
[1717031790855,2.65308,3769.2,3768.6,1.29789222]
[1717031791239,0.02396816,3769.1,3768.6,1.29789222]
[1717031791813,2.65341,3768.8,3767.4,2.65431]
[1717031792019,2.65341,3768.8,3767.5,1.58942665]
[1717031792815,2.3194,3769.0,3767.5,1.58942665]
[1717031793052,2.65365,3768.4,3767.5,1.58942665]
[1717031794647,2.4771,3768.3,3766.3,1.062729]
[1717031794854,2.4771,3768.3,3766.4,3.95290222]
[1717031794855,2.65401,3767.9,3766.4,3.95290222]
[1717031795375,2.65432,3767.5,3766.4,1.29789222]
[1717031798183,2.65396,3768.0,3766.4,1.29789222]
[1717031798331,2.65396,3768.0,3766.5,2.65496]
[1717031798532,2.65396,3768.0,3766.7,2.65479]
[1717031798760,2.65396,3768.0,3766.8,3.61716044]
[1717031799283,2.4661,3768.2,3765.6,1.3029]
[1717031799284,2.65427,3767.6,3765.6,1.3029]
[1717031799597,2.65437,3767.4,3766.1,2.6552]
[1717031799733,2.65437,3767.4,3766.2,4.29789222]
[1717031801165,2.2714,3767.5,3766.3,2.65507]
[1717031801349,2.2714,3767.5,3766.4,1.99318844]
[1717031801542,2.2714,3767.5,3766.5,2.65495]
[1717031801739,2.2714,3767.5,3766.6,1.29789222]
[1717031802328,2.65401,3767.9,3766.7,2.65482]
[1717031802566,2.65401,3767.9,3766.9,2.65466]
[1717031802769,2.65369,3768.4,3767.1,2.65453]